bitfinex-derivatives/quotes_ETHF0:USTF0_20240904
["timestamp","ask_amount","ask_price","bid_price","bid_amount"]
[1725466030373,20.38417,2452.8,2450.8,4.0731]
[1725466030374,0.19719315,2454.6,2453.5,3.2078]
[1725466030672,1.6307,2455.3,2454.5,3.2078]
[1725466030878,0.40732,2455.0,2454.5,3.2078]
[1725466031081,2.82,2455.1,2454.5,0.00611197]
[1725466031267,0.40733,2454.9,2454.7,3.2078]
[1725466032374,0.00611197,2455.0,2454.7,3.2078]
[1725466033672,0.00611197,2455.0,2454.7,7.2814]
[1725466033874,0.00611197,2455.0,2454.8,0.40733]
[1725466034280,0.00611197,2455.0,2454.8,4.48093]
[1725466034476,0.00611197,2455.0,2454.8,4.0736]
[1725466034681,0.00611197,2455.0,2454.8,4.48093]
[1725466034975,0.00611197,2455.0,2454.9,4.48092]
[1725466035180,0.40715,2456.0,2455.2,0.40727]
[1725466035473,0.40715,2456.0,2455.8,3.2078]
[1725466035474,0.61363174,2456.0,2455.8,3.2078]
[1725466035778,0.20648174,2456.0,2455.3,3.2078]
[1725466036077,0.40722,2455.6,2455.3,3.2078]
[1725466036273,0.60813932,2455.6,2455.0,3.2078]
[1725466036581,0.60813932,2455.6,2455.5,3.2078]
[1725466039091,0.40723,2455.5,2455.1,3.2078]
[1725466039380,0.40725,2455.4,2455.0,3.2078]
[1725466039574,0.40725,2455.4,2455.3,3.2078]
[1725466039881,1.01795,2455.8,2455.3,3.2078]
[1725466039882,0.608642,2455.5,2455.3,3.2078]
[1725466040377,0.201412,2455.5,2455.0,3.2078]
[1725466040581,0.40722,2455.5,2455.4,3.2078]
[1725466040884,3.42261619,2455.9,2455.4,3.2078]
[1725466041175,0.40721,2455.6,2455.4,3.2078]
[1725466041384,3.42261619,2455.9,2455.4,3.2078]
[1725466041385,0.40722,2455.5,2455.4,3.2078]
[1725466042383,0.40721,2455.6,2455.4,3.2078]
[1725466042680,0.4072,2455.7,2455.4,3.2078]
[1725466042876,0.40719,2455.8,2455.4,3.2078]
[1725466043077,0.21481619,2455.9,2455.7,3.2078]
[1725466043480,4.69398619,2455.9,2455.7,3.2078]
[1725466043682,0.40717,2455.8,2455.7,3.2078]
[1725466044578,4.47917,2455.8,2455.7,3.2078]
[1725466045190,5.08994,2455.8,2455.2,3.2078]
[1725466045479,0.21481619,2455.9,2455.5,3.2078]
[1725466045680,0.4072,2455.7,2455.5,3.2078]
[1725466045981,0.40719,2455.7,2455.5,3.2078]
[1725466046779,0.40725,2455.4,2455.2,3.2078]
[1725466046981,1.01794,2455.8,2455.2,3.2078]
[1725466046982,0.40726,2455.3,2455.2,3.2078]
[1725466047175,0.40725,2455.4,2455.2,3.2078]
[1725466047575,0.40726,2455.3,2455.2,3.2078]
[1725466048089,0.40725,2455.4,2455.2,3.2078]
[1725466048790,0.21481619,2455.9,2455.2,3.2078]
[1725466048980,1.42511,2455.8,2455.7,3.2078]
[1725466049383,11.49711,2455.8,2455.7,3.2078]
[1725466049587,12.51505,2455.8,2455.7,3.20168803]
[1725466049789,0.40726,2455.3,2455.2,3.2078]
[1725466050593,1.01819,2455.2,2454.6,3.2078]
[1725466050793,0.40734,2454.8,2454.6,3.2078]
[1725466050994,0.40736,2454.7,2454.6,3.2078]
[1725466052197,1.42576,2454.7,2454.6,3.2078]
[1725466053504,0.40736,2454.7,2454.6,3.2078]
[1725466053706,1.42576,2454.7,2454.6,3.2078]
[1725466053998,1.42576,2454.7,2454.5,0.00611197]
[1725466053999,0.40737,2454.6,2454.5,0.00611197]
[1725466054194,1.80921,2455.2,2454.5,3.21391197]
[1725466054396,0.40732,2454.9,2454.8,3.2078]
[1725466054596,0.40737,2454.7,2454.6,3.2078]
[1725466055199,1.42577,2454.7,2454.6,3.2078]
[1725466057496,0.40737,2454.7,2454.6,3.2078]
[1725466057703,3.2078,2455.2,2454.6,7.2814]
[1725466057999,0.40734,2454.9,2454.6,4.0213]
[1725466058199,1.84877,2455.3,2454.6,4.0213]
[1725466058401,1.84877,2455.3,2454.8,3.2078]
[1725466058402,0.40732,2454.9,2454.8,3.2078]
[1725466060797,1.42564,2454.9,2454.8,3.2078]
[1725466061097,0.40732,2454.9,2454.8,3.2078]
[1725466061892,0.20160749,2455.4,2454.8,3.2078]
[1725466062102,1.02405197,2455.9,2455.1,3.2078]
[1725466062298,1.01801,2455.7,2455.1,3.2078]
[1725466062505,1.63127278,2455.7,2455.6,3.2078]
[1725466062893,1.01809,2455.5,2455.2,3.2078]
[1725466063100,2.44336,2455.5,2455.4,3.2078]
[1725466063295,0.40726,2455.3,2454.9,0.8954]
[1725466063506,0.40729,2455.2,2455.1,3.2078]
[1725466065006,10.0728,2455.2,2455.1,2.57824695]
[1725466065312,12.51645,2455.2,2455.1,2.57824695]
[1725466065905,5.49826,2455.2,2455.1,2.57824695]
[1725466066110,0.40736,2454.7,2454.6,3.2078]
[1725466067404,0.40735,2454.8,2454.6,7.2814]
[1725466067602,0.40736,2454.7,2454.6,3.2078]
[1725466068609,1.42581,2454.6,2454.5,0.00611197]
[1725466068809,1.42581,2454.6,2454.5,3.21391197]
[1725466069113,0.40737,2454.6,2454.5,3.21391197]
[1725466070413,1.42581,2454.6,2454.5,3.21391197]
[1725466070801,0.40737,2454.6,2454.5,3.21391197]
[1725466072608,1.42581,2454.6,2454.5,3.21391197]
[1725466074006,1.42581,2454.6,2454.5,0.00611197]
[1725466075909,2.44425,2454.6,2454.5,3.21391197]
[1725466076104,2.44425,2454.6,2454.5,0.00611197]
[1725466076309,2.44425,2454.6,2454.5,3.21391197]
[1725466077304,2.44425,2454.6,2454.5,0.00611197]
[1725466077504,6.51865,2454.6,2454.5,0.00611197]
[1725466078410,12.51865,2454.6,2454.5,0.00611197]
[1725466079302,11.50021,2454.6,2454.5,0.00611197]
[1725466079614,11.69331288,2454.6,2454.5,0.00611197]
[1725466080611,5.69331288,2454.6,2454.5,0.00611197]
[1725466082906,0.40746,2454.1,2453.7,3.2078]
[1725466083108,0.20077031,2454.3,2454.0,3.2078]
[1725466083306,1.01844,2454.6,2454.0,3.2078]
[1725466083613,1.01848,2454.5,2454.3,3.2078]
[1725466083915,0.40743,2454.3,2454.0,3.2078]
[1725466084107,0.40744,2454.2,2454.0,3.2078]
[1725466084305,0.61346273,2454.3,2454.0,3.2078]
[1725466084510,0.20602273,2454.3,2454.0,3.2078]
[1725466084813,0.40744,2454.2,2454.0,3.2078]
[1725466085005,0.40746,2454.1,2454.0,3.2078]
[1725466085205,0.40745,2454.2,2454.0,3.2078]
[1725466085605,0.00611197,2454.6,2454.1,6.1852]
[1725466085904,0.40734,2454.8,2454.5,3.2078]
[1725466086104,1.42581,2454.6,2454.5,4.0603]
[1725466086720,1.42581,2454.6,2454.5,3.2078]
[1725466087312,0.40737,2454.6,2454.5,3.2078]
[1725466087508,0.40737,2454.7,2454.5,3.2078]
[1725466087707,0.40737,2454.6,2454.5,3.2078]
[1725466088719,1.42581,2454.6,2454.5,3.2078]
[1725466090322,2.44425,2454.6,2454.5,3.2078]
[1725466091016,6.51865,2454.6,2454.5,3.2078]
[1725466091918,1.42581,2454.6,2454.5,3.2078]
[1725466094420,0.40737,2454.6,2454.5,3.2078]
[1725466095016,0.00611197,2454.8,2454.5,3.2078]
[1725466095225,0.40736,2454.7,2454.6,0.92]
[1725466095613,1.42576,2454.7,2454.6,0.92]
[1725466096914,1.42581,2454.6,2454.5,3.2078]
[1725466099817,2.44425,2454.6,2454.5,3.2078]
[1725466101116,12.51865,2454.6,2454.5,3.2078]
[1725466101722,6.51865,2454.6,2454.5,3.2078]
[1725466102112,2.44425,2454.6,2454.5,3.2078]
[1725466102517,1.42598,2454.3,2454.2,3.2078]
[1725466103028,0.40746,2454.1,2454.0,0.8525]
[1725466103326,0.40746,2454.1,2454.0,4.0603]
[1725466103531,0.40746,2454.1,2454.0,0.8525]
[1725466103824,3.2078,2455.3,2454.0,14.1355]
[1725466104023,0.40723,2455.5,2454.7,3.61515]
[1725466104225,0.58833545,2455.6,2455.1,3.2078]
[1725466104525,0.78936199,2455.6,2455.4,3.2078]
[1725466104721,0.38215199,2455.6,2455.4,3.2078]
[1725466104928,0.38215199,2455.6,2455.5,4.0728]
[1725466105125,0.38215199,2455.6,2455.5,5.8057]
[1725466105320,0.38215199,2455.6,2455.5,11.8057]
[1725466106925,0.00611197,2455.8,2455.5,11.8057]
[1725466107123,0.00611197,2455.8,2455.7,3.2078]
[1725466107323,0.00611197,2455.8,2455.7,7.2798]
[1725466107622,0.00611197,2455.8,2455.7,13.2798]
[1725466108725,0.00611197,2455.8,2455.7,7.2798]
[1725466109021,0.00611197,2455.8,2455.7,13.2798]
[1725466109733,0.20877558,2456.5,2455.7,15.3898]
[1725466109919,2.31101013,2456.7,2456.1,3.2078]
[1725466110120,0.4071,2456.3,2456.1,3.2078]
[1725466110321,0.40708,2456.4,2456.1,3.2078]
[1725466110523,0.40709,2456.3,2456.1,3.2078]
[1725466111027,0.40709,2456.3,2456.1,7.279]
[1725466111327,0.00611197,2456.5,2456.1,3.2078]
[1725466111623,0.00611197,2456.5,2455.8,4.082]
[1725466111624,2.11,2456.2,2455.8,4.082]
[1725466112228,0.40716,2455.9,2455.8,4.082]
[1725466112423,2.11,2456.2,2455.8,4.082]
[1725466112625,0.40714,2456.0,2455.8,4.082]
[1725466113125,0.40716,2455.9,2455.8,4.082]
[1725466113630,0.40716,2455.9,2455.8,8.154]
[1725466114630,0.40716,2455.9,2455.8,4.082]
[1725466120730,0.40715,2456.0,2455.8,4.082]
[1725466121825,0.40715,2456.0,2455.8,8.154]
[1725466122026,0.40716,2455.9,2455.8,4.9462]
[1725466122224,0.40716,2455.9,2455.8,3.2078]
[1725466122419,0.40716,2455.9,2455.8,7.2798]
[1725466122634,1.06251278,2456.4,2455.8,7.2798]
[1725466122828,0.40715,2456.0,2455.8,11.94677977]
[1725466123028,0.40716,2455.9,2455.8,3.2078]
[1725466123531,0.40716,2455.9,2455.8,7.2798]
[1725466124632,2.08022278,2456.4,2455.8,7.2798]
[1725466124633,1.87921,2456.4,2455.8,7.2798]
[1725466124924,1.0178,2456.2,2455.8,3.2078]
[1725466125132,0.40715,2456.0,2455.8,3.2078]
[1725466125530,0.40716,2455.9,2455.8,7.2798]
[1725466125731,0.40716,2455.9,2455.8,3.2078]
[1725466126920,0.40716,2455.9,2455.5,3.8429]
[1725466126921,3.53506,2455.9,2455.5,0.8391]
[1725466127126,3.53506,2455.9,2455.5,4.0469]
[1725466127127,1.01794,2455.8,2455.5,4.0469]
[1725466127323,1.01789,2456.0,2455.5,4.0469]
[1725466127526,0.40718,2455.8,2455.6,3.2078]
[1725466128730,0.40717,2455.9,2455.6,3.615]
[1725466128933,0.40718,2455.8,2455.6,3.2078]
[1725466129132,3.2078,2456.3,2455.6,3.2078]
[1725466129343,1.01778,2456.2,2455.6,3.61499]
[1725466129526,0.40716,2455.9,2455.6,0.40719]
[1725466129834,0.40716,2455.9,2455.8,3.2078]
[1725466130034,0.8615,2456.4,2455.8,3.2078]
[1725466130232,0.40713,2456.1,2455.9,0.7236]
[1725466130536,1.01774,2456.3,2455.9,0.7236]
[1725466130537,1.425,2456.0,2455.9,0.7236]
[1725466130838,0.00611197,2456.5,2456.1,0.40712]
[1725466131131,0.00611197,2456.5,2456.4,0.40707]
[1725466131328,0.00611197,2456.5,2456.4,4.47827]
[1725466131971,0.00611197,2456.5,2456.4,4.0712]
[1725466132167,0.00611197,2456.5,2456.4,4.47827]
[1725466132560,0.00611197,2456.5,2456.4,4.0712]
[1725466132869,0.41317197,2456.5,2456.4,4.0712]
[1725466133052,0.40707,2456.4,2456.3,3.2078]
[1725466133361,1.01769,2456.4,2456.0,3.2078]
[1725466133554,1.01769,2456.4,2455.9,0.7236]
[1725466133559,1.01769,2456.4,2455.9,3.9314]
[1725466133560,0.40714,2456.0,2455.9,3.9314]
[1725466133746,1.425,2456.0,2455.9,3.2078]
[1725466133946,0.40714,2456.0,2455.9,3.2078]
[1725466134755,0.40714,2456.1,2455.9,3.2078]
[1725466134950,0.40712,2456.2,2455.9,3.2078]
[1725466135148,0.40712,2456.1,2455.9,3.2078]
[1725466135347,0.40712,2456.2,2455.9,3.61495]
[1725466135633,0.40713,2456.1,2455.9,3.2078]
[1725466135835,1.0177,2456.4,2456.0,8.49064996]
[1725466136136,0.40709,2456.3,2456.2,3.2078]
[1725466136433,1.42483,2456.3,2456.2,3.2078]
[1725466136634,0.40713,2456.1,2456.0,3.2078]
[1725466137030,0.40713,2456.1,2456.0,7.279]
[1725466137429,0.40713,2456.1,2456.0,3.2078]
[1725466137632,0.40712,2456.2,2456.0,7.279]
[1725466137832,0.40712,2456.2,2456.0,3.2078]
[1725466138135,1.01769,2456.4,2456.0,7.279]
[1725466138332,0.4071,2456.3,2456.0,2.51713]
[1725466138533,0.4071,2456.3,2456.2,3.2078]
[1725466139035,0.00611197,2456.5,2456.3,0.40708]
[1725466139334,0.00611197,2456.5,2456.4,0.40707]
[1725466139534,0.41317197,2456.5,2456.3,4.7842]
[1725466139742,0.41317197,2456.5,2456.4,4.0712]
[1725466140330,1.42483,2456.3,2456.2,3.2078]
[1725466142035,0.40709,2456.3,2456.2,3.2078]
[1725466142540,1.42483,2456.3,2456.2,3.2078]
[1725466143332,2.44257,2456.3,2456.2,3.2078]
[1725466143536,2.44286,2456.0,2455.3,0.00611197]
[1725466143742,0.40721,2455.6,2455.5,3.2078]
[1725466143931,1.42524,2455.6,2455.5,3.2078]
[1725466144937,0.40719,2455.8,2455.5,3.2078]
[1725466145140,0.40719,2455.7,2455.5,3.2078]
[1725466145441,0.40719,2455.8,2455.5,3.2078]
[1725466145947,1.7924,2456.4,2455.7,0.40718]
[1725466146246,0.40707,2456.4,2456.3,3.2078]
[1725466147548,1.01769,2456.4,2456.3,3.2078]
[1725466147851,1.42476,2456.4,2456.3,3.2078]
[1725466148452,0.40713,2456.1,2455.9,2.11]
[1725466148644,0.40711,2456.2,2456.0,3.2078]
[1725466149054,0.40712,2456.1,2456.0,3.2078]
[1725466149246,1.01769,2456.4,2456.0,3.2078]
[1725466149447,0.00611197,2456.5,2456.3,3.2078]
[1725466149649,0.40707,2456.4,2456.3,3.2078]
[1725466149851,1.01776,2456.3,2456.2,3.2078]
[1725466150150,1.4249,2456.2,2456.1,3.00489999]
[1725466150645,0.40716,2455.9,2455.8,0.7786]
[1725466150847,0.40717,2455.8,2455.7,3.2078]
[1725466151351,1.0178,2456.2,2455.7,7.2798]
[1725466151552,0.40714,2456.0,2455.7,0.40719]
[1725466151753,0.40714,2456.0,2455.9,3.2078]
[1725466152842,0.7732,2456.3,2455.9,3.2078]
[1725466153048,1.79094,2456.3,2455.8,3.61497]
[1725466153246,0.40716,2455.9,2455.6,3.2444]
[1725466153451,0.40716,2455.9,2455.8,3.2078]
[1725466153948,0.40713,2456.1,2455.9,0.40715]
[1725466154145,0.00611197,2456.5,2455.9,4.072]
[1725466154446,0.4071,2456.3,2456.1,0.40711]
[1725466154648,0.00611197,2456.5,2456.2,3.2078]
[1725466154846,0.00611197,2456.5,2456.4,0.40707]
[1725466155252,0.00611197,2456.5,2456.4,4.47827]
[1725466155943,0.00611197,2456.5,2456.4,10.47827]
[1725466156254,0.20662789,2457.1,2456.6,0.40703]
[1725466156454,1.63101789,2457.1,2457.0,3.2078]
[1725466156744,1.42439,2457.1,2457.0,3.2078]
[1725466156954,0.40698,2457.0,2456.3,4.6609]
[1725466157147,1.01753,2456.8,2456.4,3.21391197]
[1725466157347,0.40706,2456.5,2456.4,0.00611197]
[1725466157550,0.40706,2456.5,2456.4,3.21391197]
[1725466158547,0.40705,2456.6,2456.4,3.21391197]
[1725466158944,0.40704,2456.6,2456.4,3.21391197]
[1725466159144,1.75571197,2456.9,2456.4,3.21391197]
[1725466159145,0.40703,2456.7,2456.4,3.21391197]
[1725466159345,0.40703,2456.7,2456.4,5.32391197]
[1725466159546,0.40706,2456.5,2456.4,3.21391197]
[1725466162549,1.0176,2456.7,2456.4,3.21391197]
[1725466162755,0.40702,2456.8,2456.4,3.21391197]
[1725466162953,0.40702,2456.8,2456.7,3.2078]
[1725466163154,0.00611197,2456.9,2456.7,3.2078]
[1725466163749,0.00611197,2456.9,2456.8,4.47741]
[1725466164156,0.00611197,2456.9,2456.8,10.47741]
[1725466164659,0.40701,2456.8,2456.7,3.2078]
[1725466165461,0.41311197,2456.9,2456.7,3.2078]
[1725466165758,0.40701,2456.8,2456.7,3.2078]
[1725466166558,0.40705,2456.6,2456.4,3.21391197]
[1725466166753,0.41311197,2456.9,2456.5,0.40704]
[1725466166953,0.41311197,2456.9,2456.8,3.2078]
[1725466167151,0.00611197,2456.9,2456.8,3.61481]
[1725466168049,1.77228,2457.7,2457.2,0.40693]
[1725466168254,0.4069,2457.5,2457.4,3.2078]
[1725466168755,0.40694,2457.3,2456.9,1.90368]
[1725466169059,0.40694,2457.3,2457.1,3.2078]
[1725466169254,0.40694,2457.2,2457.1,3.2078]
[1725466170456,2.30587266,2457.8,2457.1,3.2078]
[1725466170457,3.2078,2458.3,2457.2,4.0696]
[1725466170662,1.01705,2458.0,2457.6,3.2078]
[1725466170863,0.40685,2457.8,2457.6,3.2078]
[1725466171060,0.40682,2458.0,2457.6,3.2078]
[1725466171260,3.28455,2458.2,2457.9,3.2078]
[1725466171560,2.2676,2458.2,2457.9,3.2078]
[1725466171757,0.40681,2458.0,2457.9,3.2078]
[1725466171964,0.4068,2458.1,2457.9,3.2078]
[1725466172165,1.01613,2460.2,2458.9,1.42332]
[1725466172366,1.21328926,2460.3,2459.7,2.11]
[1725466172665,0.92898019,2460.5,2459.9,3.2078]
[1725466173167,0.40638,2460.7,2460.2,3.2078]
[1725466173475,0.749,2461.0,2460.5,3.2078]
[1725466173668,0.749,2461.0,2459.9,2.11]
[1725466173669,0.40639,2460.6,2460.2,3.2078]
[1725466173859,0.4064,2460.5,2460.2,3.2078]
[1725466174060,0.4064,2460.5,2459.9,2.51649]
[1725466174061,0.4064,2460.5,2460.4,3.2078]
[1725466174266,0.4064,2460.5,2459.6,3.2078]
[1725466174267,0.40648,2460.0,2459.6,3.2078]
[1725466174464,2.11,2460.5,2459.5,3.21389942]
[1725466174760,0.4065,2459.9,2459.5,3.21389942]
[1725466174968,0.4065,2459.9,2459.8,3.2078]
[1725466175161,0.40649,2460.0,2459.8,3.2078]
[1725466175364,0.4065,2459.9,2459.8,3.2078]
[1725466176370,1.01612,2460.2,2459.8,3.2078]
[1725466176371,0.40648,2460.0,2459.8,3.2078]
[1725466176565,0.40647,2460.1,2459.8,3.2078]
[1725466176869,0.40649,2460.0,2459.8,3.2078]
[1725466177062,0.4065,2459.9,2459.8,3.2078]
[1725466177457,0.749,2460.3,2459.8,3.2078]
[1725466177666,1.01596,2460.6,2459.8,3.2078]
[1725466177667,1.01592,2460.7,2460.1,3.2078]
[1725466177861,0.40639,2460.6,2460.1,3.2078]
[1725466178273,1.4993,2460.9,2460.4,3.2078]
[1725466178568,0.40637,2460.7,2460.4,3.2078]
[1725466178774,1.4993,2460.9,2460.4,3.2078]
[1725466179069,0.40636,2460.8,2460.4,3.2078]
[1725466179764,0.20053024,2461.1,2460.7,3.2078]
[1725466179975,0.40632,2461.0,2460.7,3.2078]
[1725466180163,0.40634,2460.9,2460.7,3.2078]
[1725466180366,0.40632,2461.0,2460.7,3.2078]
[1725466180768,4.111,2461.7,2460.8,4.064]
[1725466181072,4.111,2461.7,2460.7,9.2078]
[1725466181073,0.40626,2461.4,2461.2,3.2078]
[1725466181275,0.40625,2461.4,2461.2,3.2078]
[1725466181579,0.40622,2461.6,2461.2,3.2078]
[1725466182074,0.40622,2461.6,2461.5,3.2078]
[1725466182277,0.94792108,2462.0,2461.5,3.2078]
[1725466182470,0.4062,2461.7,2461.5,3.2078]
[1725466182870,0.94792108,2462.0,2461.1,3.2078]
[1725466183168,1.01542,2461.9,2461.1,3.2078]
[1725466183369,0.40621,2461.6,2461.5,3.2078]
[1725466183868,0.40621,2461.6,2461.0,0.00609942]
[1725466183869,0.40621,2461.7,2461.1,3.61409]
[1725466184066,0.40619,2461.8,2461.5,3.2078]
[1725466184270,4.22314,2462.1,2461.5,3.2078]
[1725466184271,1.01534,2462.1,2461.5,3.2078]
[1725466184567,0.40621,2461.6,2461.5,3.2078]
[1725466185167,1.01554,2461.6,2461.1,3.2078]
[1725466185380,3.2078,2461.7,2461.1,3.2078]
[1725466185572,0.40621,2461.7,2461.4,3.2078]
[1725466186371,0.40622,2461.6,2461.4,3.2078]
[1725466186676,0.40622,2461.6,2461.5,3.2078]
[1725466186889,0.40621,2461.6,2461.5,3.2078]
[1725466187176,0.40621,2461.7,2461.5,3.2078]
[1725466187775,0.40621,2461.6,2461.5,3.2078]
[1725466187971,0.40619,2461.8,2461.5,3.2078]
[1725466188169,0.40621,2461.6,2461.5,3.2078]
[1725466188369,1.01541,2462.0,2461.5,3.2078]
[1725466188575,0.40624,2461.5,2461.1,3.2078]
[1725466189073,0.40624,2461.5,2461.4,3.2078]
[1725466189376,0.40623,2461.5,2461.4,3.2078]
[1725466190374,0.19503185,2462.1,2461.4,3.2078]
[1725466190581,1.42153,2462.0,2461.9,3.2078]
[1725466191071,4.0616,2462.0,2461.5,3.2078]
[1725466191272,0.40621,2461.7,2461.5,3.2078]
[1725466191578,3.2078,2462.2,2461.5,3.2078]
[1725466191784,0.40621,2461.6,2461.5,3.2078]
[1725466192481,0.4062,2461.7,2461.5,3.2078]
[1725466192779,0.19286833,2462.4,2461.5,3.2078]
[1725466192780,1.01519,2462.5,2461.7,0.40619]
[1725466192980,1.01519,2462.5,2462.0,3.2078]
[1725466192981,0.40612,2462.2,2462.0,3.2078]
[1725466193478,0.40613,2462.1,2462.0,3.2078]
[1725466193879,1.01532,2462.2,2461.8,0.8212]
[1725466194083,0.40617,2461.9,2461.8,0.8212]
[1725466194275,0.40617,2461.9,2461.7,3.2078]
[1725466194476,0.40616,2462.0,2461.7,3.2078]
[1725466194681,0.40614,2462.1,2461.7,3.2078]
[1725466195178,0.40614,2462.1,2461.9,3.2078]
[1725466195378,0.40613,2462.2,2461.9,3.2078]
[1725466195572,0.40614,2462.1,2461.9,3.2078]
[1725466195769,1.5502,2462.6,2461.9,3.2078]
[1725466195974,1.01521,2462.4,2461.9,3.2078]
[1725466196177,0.40613,2462.1,2461.9,3.2078]
[1725466196383,0.40613,2462.2,2461.9,3.2078]
[1725466196585,0.40615,2462.0,2461.9,3.2078]
[1725466199077,5.07698,2462.0,2461.6,3.9941]
[1725466199284,0.4062,2461.7,2461.6,3.2078]
[1725466200690,0.40614,2462.1,2461.7,0.40619]
[1725466200985,0.40613,2462.2,2461.9,3.2078]
[1725466201190,1.5502,2462.6,2461.9,3.61396]
[1725466201191,0.4061,2462.4,2461.9,3.61396]
[1725466201372,0.40613,2462.1,2461.8,3.9754]
[1725466201574,1.0153,2462.2,2461.8,3.2078]
[1725466201787,0.40615,2462.0,2461.8,3.2078]
[1725466202288,0.40617,2461.9,2461.8,3.2078]
[1725466202878,0.40619,2461.8,2461.5,4.7899]
[1725466203279,1.0154,2462.0,2461.5,4.7899]
[1725466203485,0.40617,2461.9,2461.8,3.2078]
[1725466203778,1.42159,2461.9,2461.8,3.2078]
[1725466203983,0.40621,2461.6,2461.5,0.8145]
[1725466204177,0.40621,2461.6,2461.5,3.2078]
[1725466204381,0.7967,2461.9,2461.5,3.2078]
[1725466204581,0.7967,2461.9,2461.2,0.75]
[1725466204582,0.19808643,2462.3,2461.8,3.2078]
[1725466204784,4.223,2462.5,2461.8,3.2078]
[1725466204785,0.40614,2462.1,2461.8,3.2078]
[1725466204988,0.40612,2462.2,2461.8,3.2078]
[1725466205175,0.40612,2462.2,2461.7,1.2115]
[1725466205176,0.40612,2462.2,2462.1,3.2078]
[1725466205376,0.40617,2461.9,2461.8,3.2078]
[1725466205580,0.99761849,2462.5,2461.7,1.6047]
[1725466205581,0.40618,2461.8,2461.7,0.7994]
[1725466205787,0.40618,2461.8,2461.7,4.0072]
[1725466206491,0.40618,2461.8,2461.7,3.2078]
[1725466206787,0.40618,2461.9,2461.7,3.2078]
[1725466206989,0.40615,2462.0,2461.7,3.2078]
[1725466207285,0.40614,2462.1,2461.7,3.2078]
[1725466207484,0.40613,2462.2,2462.0,3.2078]
[1725466207690,0.40603,2462.8,2462.2,0.40611]
[1725466207989,0.40603,2462.8,2462.6,3.2078]
[1725466208686,0.40603,2462.7,2462.6,3.2078]
[1725466208883,0.19809986,2462.9,2462.6,3.2078]
[1725466209086,0.40603,2462.8,2462.6,3.2078]
[1725466209289,0.20120851,2462.9,2462.6,3.2078]
[1725466209486,1.16387,2463.1,2462.6,3.2078]
[1725466209788,0.40598,2463.0,2462.9,3.2078]
[1725466210393,0.7579,2463.1,2462.9,3.2078]
[1725466210588,4.8179,2463.1,2462.6,3.2078]
[1725466210783,0.40603,2462.7,2462.6,3.2078]
[1725466211291,0.40603,2462.7,2462.3,0.00609942]
[1725466211292,0.20417492,2462.8,2462.3,3.21389942]
[1725466211491,0.40608,2462.4,2462.3,3.21389942]
[1725466211794,0.40608,2462.4,2461.9,3.9899]
[1725466211795,0.40615,2462.1,2461.9,3.9899]
[1725466211987,1.01513,2462.6,2461.9,3.9899]
[1725466212184,1.01517,2462.5,2461.9,3.2078]
[1725466212381,0.40615,2462.0,2461.9,3.2078]
[1725466212587,1.42153,2462.0,2461.9,3.2078]
[1725466212780,5.48313,2462.0,2461.9,3.2078]
[1725466213189,0.40618,2461.8,2461.7,0.00609942]
[1725466213683,0.40618,2461.8,2461.7,3.21389942]
[1725466213883,4.46858,2461.8,2461.7,0.00609942]
[1725466214290,0.7405,2462.1,2461.7,3.21389942]
[1725466214597,0.40617,2461.9,2461.7,3.21389942]
[1725466214783,0.40616,2462.0,2461.7,3.21389942]
[1725466215092,0.40613,2462.1,2461.7,3.21389942]
[1725466215292,0.40613,2462.1,2462.0,3.2078]
[1725466215798,0.40618,2461.8,2461.7,0.00609942]
[1725466216596,0.60843307,2461.9,2461.7,0.00609942]
[1725466216791,0.40617,2461.9,2461.7,0.00609942]
[1725466217094,0.40616,2462.0,2461.7,0.00609942]
[1725466217289,0.40615,2462.1,2461.9,3.2078]
[1725466217483,0.41217758,2462.2,2461.9,3.2078]
[1725466217689,0.40613,2462.1,2461.9,3.2078]
[1725466217895,0.41217758,2462.2,2461.9,3.2078]
[1725466218293,0.40615,2462.0,2461.9,3.2078]
[1725466218596,0.40614,2462.1,2461.9,3.2078]
[1725466218990,0.41218758,2462.2,2461.9,3.2078]
[1725466219190,0.40615,2462.0,2461.9,3.2078]
[1725466220701,1.01534,2462.1,2461.7,0.00609942]
[1725466221001,1.42164,2461.8,2461.7,0.00609942]
[1725466221496,1.42164,2461.8,2461.7,9.42e-06]
[1725466221497,15.7073,2461.8,2461.7,9.42e-06]
[1725466222092,12.4995,2461.8,2461.7,9.42e-06]
[1725466222497,15.7073,2461.8,2461.7,9.42e-06]
[1725466223388,12.4995,2461.8,2461.7,9.42e-06]
[1725466223596,12.70054145,2461.8,2461.7,9.42e-06]
[1725466223796,11.68508145,2461.8,2461.7,9.42e-06]
[1725466223994,4.66962145,2461.8,2461.7,9.42e-06]
[1725466224205,4.66962145,2461.8,2461.7,3.20780942]
[1725466224395,4.66962145,2461.8,2461.7,9.42e-06]
[1725466224900,12.43248145,2461.8,2461.7,9.42e-06]
[1725466225089,13.44794145,2461.8,2461.7,9.42e-06]
[1725466225293,13.44794145,2461.8,2460.6,3.42137]
[1725466225294,0.40635,2460.8,2460.6,0.205]
[1725466225500,0.40637,2460.7,2460.3,0.7273]
[1725466225795,0.40637,2460.7,2459.7,3.01013002]
[1725466225796,1.01588,2460.8,2459.6,3.2078]
[1725466226001,1.01595,2460.7,2459.8,3.2078]
[1725466226188,0.40645,2460.2,2459.8,3.2078]
[1725466226388,0.00609942,2460.2,2459.8,3.21389942]
[1725466226596,0.40649,2460.0,2459.8,3.21389942]
[1725466227198,0.4065,2459.9,2459.8,3.21389942]
[1725466227597,5.48835,2459.9,2459.8,0.00609942]
[1725466227796,0.40657,2459.5,2459.0,3.2078]